Cogmind - Beta 14 @@@ ROGUE MODE // 2024.09.16 @ 19:41:06 Player: Dull Result: Destroyed by S-27 Virus with Autogun Performance ------------- Evolutions (3) 1500 Regions Visited (11) 2200 Robots Destroyed (211) 1055 Value Destroyed (6378) 6378 Prototype IDs (27) 540 Alien Tech Used (0) 0 Bonus (2196) 2196 TOTAL SCORE: 13869 Bonus ------- High Alert Combat Kills 1240 Follower Combat Kills 156 Entered Garrisons 200 Aligned with FarCom 300 Acquired ECA 300 Cogmind --------- Core Integrity 0/700 Matter 264/300 Energy 143/150 System Corruption 2% Temperature Cool (24) Movement Rolling (145) Ox3 Location -7/Lower Caves Parts ------- > --- POWER (1) -------- Micro Nuclear Core > --- PROPULSION (4) --- Carbon-fiber Leg Improved Carbon-fiber Leg Armored Huge Wheel > --- UTILITY (5) ------ Huge Storage Unit Encrypted Comm Array ECM Suite > --- WEAPON (3) ------- High-powered Shotgun Gauss Rifle (fused) > --- INVENTORY (25) --- Micro Nuclear Core Neutrino Core Improved Carbon-fiber Leg Improved Carbon-fiber Leg Improved Cooling System Improved Terrain Scanner Advanced Terrain Scan Processor 0b10 Alert Chip Recoil Nullifier Hardened Heavy Armor Plating Tractor Beam Advanced Field Recycling Unit (0) Advanced Drone Bay (2/2) Thief Drone Bay (3/3) Heavy Laser Assault Rifle Gauss Rifle Scythe Spear Peak State ------------ > --- POWER ------------ Reinforced Deuterium Engine > --- PROPULSION ------- Carbon-fiber Leg Carbon-fiber Leg Carbon-fiber Leg Carbon-fiber Leg > --- UTILITY ---------- Improved Heat Sink High-capacity Storage Unit Recoil Nullifier Hardened Heavy Armor Plating > --- WEAPON ----------- Gauss Rifle Heavy Mass Driver > --- INVENTORY -------- Cooled Ion Engine Light Nuclear Core Light Nuclear Core Neutrino Core Improved Terrain Scanner 0b10 Alert Chip ECM Suite Hacking Suite Hacking Suite Tractor Beam Advanced Field Recycling Unit Advanced Drone Bay Thief Drone Bay Wave Gun High-powered Shotgun Gauss Rifle Flak Gun Rocket Launcher Katana [Rating: 57] Favorites ----------- Power Cooled Ion Engine Engine Cooled Ion Engine Power Core Micro Nuclear Core Propulsion Improved Treads Treads Improved Treads Leg Improved Carbon-fiber Leg Wheel Armored Huge Wheel Hover Unit Gravmag System Flight Unit VTOL Module Utility High-capacity Storage Unit Device Improved Heat Sink Storage High-capacity Storage Unit Processor Improved Terrain Scan Processor Hackware Hacking Suite Protection Light Armor Plating Weapon Heavy Assault Rifle Energy Gun Small Laser Ballistic Gun Heavy Assault Rifle Ballistic Cannon Improved Light Cannon Launcher Rocket Launcher Special Weapon Mining Laser Slashing Weapon Mining Claw Piercing Weapon Spear Build | -11 -10 -10 -9 -9 -9 -8 -8 -8 -7 -7 -7 ------- Run | Yrd Mat Min Mat Min Exi Min Mat Gar Fac Low Low Slots Evolved 6 | . . . 2 . . . 2 . 2 . . Power . | . . . . . . . . . . . . Propulsion 2 | . . . . . . . 1 . 1 . . Utility 3 | . . . 1 . . . 1 . 1 . . Weapon 1 | . . . 1 . . . . . . . . Parts Attached 189 | 3 11 4 53 5 6 3 9 34 40 12 9 Power 17 | . 2 1 2 1 . 1 1 2 6 . 1 Engine 11 | . 2 1 2 1 . . 1 2 2 . . Core 6 | . . . . . . 1 . . 4 . 1 Reactor . | . . . . . . . . . . . . Propulsion 50 | 2 3 . 15 . . . 2 9 15 3 1 Treads 23 | 2 2 . 15 . . . 2 2 . . . Leg 17 | . . . . . . . . 7 7 2 1 Wheel 6 | . 1 . . . . . . . 4 1 . Hover 1 | . . . . . . . . . 1 . . Flight 3 | . . . . . . . . . 3 . . Utility 67 | 1 4 3 16 3 1 . 4 11 11 6 7 Device 29 | 1 2 2 2 . . . 1 5 5 6 5 Storage 9 | . 2 1 3 . 1 . . 1 1 . . Processor 2 | . . . 1 . . . 1 . . . . Hackware 4 | . . . 1 . . . 1 . 2 . . Protection 23 | . . . 9 3 . . 1 5 3 . 2 Artifact . | . . . . . . . . . . . . Weapon 55 | . 2 . 20 1 5 2 2 12 8 3 . Energy Gun 10 | . 2 . 5 . . 1 . 1 1 . . Energy Cannon . | . . . . . . . . . . . . Ballistic Gun 27 | . . . 9 . 4 . 1 6 4 3 . Ballistic Cannon 4 | . . . 1 . . . . 2 1 . . Launcher 10 | . . . 4 . 1 1 1 3 . . . Special Weapon 1 | . . . 1 . . . . . . . . Impact Weapon . | . . . . . . . . . . . . Slashing Weapon 2 | . . . . 1 . . . . 1 . . Piercing Weapon 1 | . . . . . . . . . 1 . . Special Melee Weapon . | . . . . . . . . . . . . Unidentified Prototypes 1 | . . 1 . . . . . . . . . Parts Lost 57 | . 4 . 4 . . . 3 15 25 . 6 Power 9 | . 1 . 1 . . . 1 1 4 . 1 Propulsion 20 | . 1 . 2 . . . 1 5 10 . 1 Utility 14 | . 1 . 1 . . . . 5 4 . 3 Weapon 14 | . 1 . . . . . 1 4 7 . 1 Highest Loss Streak 8 | . 1 . 2 . . . 2 6 8 . 3 To Critical Strikes 1 | . . . . . . . . 1 . . . Average Slot Usage (%) 91 | . 97 100 98 99 77 100 94 92 75 84 83 Engine 7 | . 13 14 11 11 11 . 2 8 2 . . Core 2 | . . . . . . 10 5 . 3 7 6 Treads 16 | . 26 28 21 22 22 22 26 14 . . . Leg 4 | . . . . . . . . 10 13 13 9 Wheel 2 | . 1 . . . . . . . 7 8 12 Device 7 | . 13 14 8 . . . 5 10 4 14 16 Storage 10 | . 14 14 11 11 11 11 9 12 7 7 7 Hackware 1 | . . . . . . . 1 . 9 . . Protection 11 | . . . 12 22 22 22 12 11 5 7 6 Energy Gun 6 | . 21 28 7 . . 10 9 1 . . . Ballistic Gun 13 | . 4 . 15 21 . 17 8 13 11 23 23 Ballistic Cannon 2 | . . . 5 . . . . 6 4 . . Launcher 2 | . . . 4 10 . 5 8 1 . . . Peak Build Rating 57 | 7 10 14 22 21 21 24 31 52 57 54 54 Average Rating 27 | 6 8 10 18 19 16 23 28 33 46 50 50 On Entrance 23 | 6 7 10 11 19 18 21 24 28 52 35 49 Naked Turns . | . . . . . . . . . . . . Heaviest Build 129 | 12 29 29 66 63 63 63 65 86 129 115 115 Greatest Support 69 | 40 40 40 46 46 46 46 69 66 60 38 38 Greatest Overweight (x) 24 | . 2 . 2 1 1 1 1 2 24 4 4 Average Overweight (x) 1 | . . . . 1 1 1 . . 2 3 2 Largest Inventory Capacity 25 | 8 15 15 20 20 20 20 20 20 25 25 25 Average Capacity 19 | 8 12 15 19 20 20 20 20 20 21 25 25 Most Carried 25 | 5 15 15 20 20 20 20 20 20 25 23 22 Average Carried 18 | 2 9 14 18 19 19 20 19 19 19 20 21 Final Capacity 25 | 8 15 15 20 20 20 20 20 20 25 25 25 Final Carried 24 | 2 15 15 20 20 20 20 20 20 24 22 21 Class Distribution -------------------- 54% | Tank 13% | Mutant 11% | Scavenger-Mutant 7% | Scavenger-Skirmisher 7% | Scavenger-Tank Dominant Class ---------------- Scavenger-Mutant | -10/Materials Scavenger-Mutant | -10/Mines Tank | -9/Materials Tank | -9/Mines Mutant | -9/Exiles Tank | -8/Mines Skirmisher | -8/Materials Scavenger-Skirmisher | -8/Garrison Tank | -7/Factory Tank | -7/Lower Caves Tank | -7/Lower Caves Resources | -11 -10 -10 -9 -9 -9 -8 -8 -8 -7 -7 -7 ----------- Run | Yrd Mat Min Mat Min Exi Min Mat Gar Fac Low Low Matter Collected 6044 | 249 557 45 1647 202 17 290 116 1022 1148 343 408 Remotely . | . . . . . . . . . . . . Salvage Created 6566 | 50 560 281 2376 48 . 440 364 1027 953 172 295 Parts 405 | 2 36 10 169 7 . 28 21 46 56 15 15 Haulers Intercepted 8 | . 1 . 6 . . . 1 . . . . Recyclers Shooed 3 | . 1 . 1 . . 1 . . . . . Parts Field Recycled . | . . . . . . . . . . . . Retrieved Matter . | . . . . . . . . . . . . Parts Self-Destructed 24 | . . . . . . . . . . 15 9 Prevented . | . . . . . . . . . . . . Kills | -11 -10 -10 -9 -9 -9 -8 -8 -8 -7 -7 -7 ------- Run | Yrd Mat Min Mat Min Exi Min Mat Gar Fac Low Low Combat Hostiles Destroyed 164 | . 14 4 43 6 . 13 6 33 29 7 9 Melee 8 | . . . . . . . . . 8 . . Guns 107 | . 13 4 31 2 . 6 5 15 15 7 9 Cannons 15 | . . . 4 . . . . 6 5 . . AOE 33 | . 1 . 8 4 . 7 . 12 1 . . Classes Destroyed 19 | 1 5 2 6 1 . . 1 2 . . 1 Worker 7 | . . 1 4 . . . . . 2 . . Builder 11 | . . . 8 . . 2 . . 1 . . Tunneler 3 | 2 . . 1 . . . . . . . . Hauler 8 | . 1 . 6 . . . 1 . . . . Recycler 5 | . . 1 3 . . 1 . . . . . Mechanic 2 | . . . 1 . . . . . 1 . . Operator 4 | . 1 . 3 . . . . . . . . Watcher 10 | . 3 . 5 . . . . 1 1 . . Swarmer 51 | . 6 . 10 3 . 7 . 8 9 6 2 Grunt 68 | . 8 4 20 . . 5 2 13 12 . 4 Brawler 5 | . . . 1 . . 1 . 1 1 . 1 Duelist 3 | . . . 1 . . . . 2 . . . Protector 1 | . . . 1 . . . . . . . . Sentry 16 | . . . 10 . . . 3 2 1 . . Hunter 11 | . . . . . . . 1 5 3 1 1 Programmer 4 | . . . . . . . . 1 3 . . Behemoth 1 | . . . . . . . . 1 . . . Thief 1 | . . . . . . . . . . . 1 Assembled 3 | . . . . 3 . . . . . . . Best Kill Streak 10 | 1 3 2 7 3 . 7 4 10 5 4 4 Combat Bots Only 10 | . 3 2 5 3 . 5 4 10 5 4 4 Max Kills in Single Turn 4 | 1 1 1 4 3 . 4 1 4 1 2 2 Gunslinging 1 | . . . 1 . . . . . . 1 . Exploded 4 | . 1 . 3 3 . 2 . 4 1 . . Melee 1 | . . . . . . . . . 1 . . Uniques/NPCs Destroyed . | . . . . . . . . . . . . Combat | -11 -10 -10 -9 -9 -9 -8 -8 -8 -7 -7 -7 -------- Run | Yrd Mat Min Mat Min Exi Min Mat Gar Fac Low Low Hostile Shots Fired 1081 | . 66 27 155 12 . 37 49 205 437 36 57 Missed 278 | . 12 10 47 4 . 12 15 52 105 8 13 Damage Taken 11690 | . 718 223 1710 233 . 314 542 2465 4424 298 763 Core 1325 | . 105 24 195 37 . 30 30 204 629 19 52 Absorbed by Shields 662 | . . . . . . . . 200 335 115 12 Regen/Repaired (Parts) 154 | . 121 . . . . . 33 . . . . Core Remaining (%) 59 | 100 . 48 . . . 34 . 57 . . . Volleys Fired 523 | 8 63 26 157 9 . 27 19 91 87 12 24 Largest 3 | 2 2 2 3 2 . 2 2 3 3 3 3 Hottest 137 | 60 90 90 118 46 . 92 92 131 137 78 78 Shots Fired 1109 | 16 104 51 359 16 . 47 32 225 148 38 73 Gun 928 | 16 104 51 302 11 . 41 32 154 106 38 73 Cannon 149 | . . . 52 . . . . 55 42 . . Launcher 32 | . . . 5 5 . 6 . 16 . . . Special . | . . . . . . . . . . . . Kinetic 799 | 8 29 . 273 11 . 37 13 183 134 38 73 Thermal 278 | 8 75 51 81 . . 4 19 26 14 . . Explosive 32 | . . . 5 5 . 6 . 16 . . . Electromagnetic . | . . . . . . . . . . . . Robot Hit Streak 22 | 2 7 8 22 3 . 11 21 13 12 2 8 Robot Miss Streak 7 | 3 3 2 5 1 . 3 2 4 7 7 7 Penetration Max 1 | . . . . . . . . 1 . . 1 Secondary Targets 7 | . 1 . 1 . . 1 . . . 2 2 Max Gunslinging Chain 1 | . 1 . 1 . . 1 . . . 1 1 Shots Hit Robots 736 | 8 75 37 221 8 . 29 27 141 132 19 39 Core Hits 437 | 2 32 14 99 11 . 24 10 85 126 14 20 Critical Kills 2 | . . . 1 . . . . . . . 1 Critical Parts Destroyed 1 | . . . 1 . . . . . . . . Critical Strikes 22 | . . . 8 . . . 2 4 7 . 1 Burn 8 | . . . 5 . . . 2 . 1 . . Destroy 3 | . . . 2 . . . . . . . 1 Blast 10 | . . . 1 . . . . 4 5 . . Sever 1 | . . . . . . . . . 1 . . Melee Attacks 20 | . . . . . . . . . 20 . . Impact . | . . . . . . . . . . . . Slashing 11 | . . . . . . . . . 11 . . Piercing 9 | . . . . . . . . . 9 . . Sneak Attacks . | . . . . . . . . . . . . Combat Hostiles . | . . . . . . . . . . . . Follow-up Attacks . | . . . . . . . . . . . . Damage Inflicted 16554 | 94 974 441 4439 394 . 1006 500 4276 3268 290 872 Guns 9598 | 94 870 441 2992 106 . 366 500 1521 1546 290 872 Cannons 2971 | . . . 695 . . . . 1370 906 . . Explosions 3372 | . 101 . 746 288 . 640 . 1385 212 . . Melee 592 | . . . . . . . . . 592 . . Ramming 21 | . 3 . 6 . . . . . 12 . . Kinetic 9811 | 60 276 . 2962 106 . 347 136 2518 2244 290 872 Thermal 2970 | 34 594 441 725 . . 19 364 373 420 . . Explosive 3160 | . 101 . 746 288 . 640 . 1385 . . . Electromagnetic . | . . . . . . . . . . . . Impact . | . . . . . . . . . . . . Slashing 381 | . . . . . . . . . 381 . . Piercing 211 | . . . . . . . . . 211 . . Highest Corruption 6 | . . . 2 2 2 2 . 1 6 6 6 Average Corruption 2 | . . . 2 2 2 2 . 1 2 6 3 Corruption Purged 4 | . . . . . . . . . . . 4 Corruption Blocked . | . . . . . . . . . . . . Effects 214 | . . . 61 25 14 22 . 8 17 45 22 Message Errors 56 | . . . 18 7 4 8 . . 4 11 4 Matter Fused 52 | . . . 15 8 2 3 . 1 4 10 9 Heat Flow Errors 19 | . . . 7 2 1 4 . . 2 3 . Energy Discharges 26 | . . . 7 . 3 3 . 2 2 8 1 Parts Fused 7 | . . . 3 2 . . . . 1 . 1 Data Loss (minor) 26 | . . . 9 3 2 1 . 2 1 4 4 Data Loss (major) 8 | . . . 1 1 2 1 . . . 3 . Misfires 14 | . . . . 2 . 2 . 2 1 5 2 Alerts 4 | . . . 1 . . . . 1 . 1 1 Weapon Failures 2 | . . . . . . . . . 2 . . Overload Shots . | . . . . . . . . . . . . Overflow Damage 234 | . . . 50 2 . 17 . 73 92 . . Projectiles 82 | . . . . . . . . 65 17 . . Explosions 152 | . . . 50 2 . 17 . 8 75 . . Melee . | . . . . . . . . . . . . Knockbacks 14 | . . . 3 . . . . 7 4 . . Impact . | . . . . . . . . . . . . Kinetic 14 | . . . 3 . . . . 7 4 . . Secondary . | . . . . . . . . . . . . Self-Inflicted Damage 666 | . 114 . 213 80 . 20 . . 239 . . Shots 9 | . 1 . 2 2 . 1 . . 3 . . Rammed 3 | . 1 . 1 . . . . . 1 . . Targets Rammed 4 | . 1 . 1 . . . . . 2 . . Kicked 1 | . . . . . . . . . 1 . . Crushed . | . . . . . . . . . . . . Highest Temperature 516 | . 63 9 254 167 179 246 137 341 516 226 210 Average Temperature 81 | . 21 3 48 80 97 69 58 91 119 97 81 Received Heat Transfer 3188 | . 255 129 504 . . 144 162 723 1100 . 171 Effects 9 | . . . . . . . . . 9 . . Shutdowns 2 | . . . . . . . . . 2 . . Interference 4 | . . . . . . . . . 4 . . Matter Decay 2 | . . . . . . . . . 2 . . Short Circuit 1 | . . . . . . . . . 1 . . Siege Activations . | . . . . . . . . . . . . Robots Corrupted . | . . . . . . . . . . . . Combat Hostiles . | . . . . . . . . . . . . Parts Fried . | . . . . . . . . . . . . Impact Corruptions . | . . . . . . . . . . . . Robots Melted 1 | . . . . . . . 1 . . . . Combat Hostiles 1 | . . . . . . . 1 . . . . Parts Melted 8 | . 1 2 5 . . . . . . . . Heat Transferred 6631 | 75 1373 1105 2174 . . 37 851 546 470 . . Parts Sabotaged . | . . . . . . . . . . . . Parts Stolen . | . . . . . . . . . . . . Parts Stripped . | . . . . . . . . . . . . Power Chain Reactions . | . . . . . . . . . . . . Alert | -11 -10 -10 -9 -9 -9 -8 -8 -8 -7 -7 -7 ------- Run | Yrd Mat Min Mat Min Exi Min Mat Gar Fac Low Low Peak Influence 1373 | 10 185 119 1185 485 . 235 254 1373 962 . . Initial 720 | . 6 9 . 462 . . 58 35 720 . . Average 410 | 3 67 27 472 257 . 68 118 721 773 . . Maximum Alert Level 4 | . . . 4 2 . 1 1 4 3 . . Low Security (%) 45 | 100 100 100 33 43 . 98 81 12 . . . Level 1 10 | . . . 21 34 . 1 18 3 . . . Level 2 11 | . . . 11 22 . . . 30 8 . . Level 3 29 | . . . 31 . . . . 40 91 . . Level 4 2 | . . . 1 . . . . 13 . . . Level 5 . | . . . . . . . . . . . . High Security . | . . . . . . . . . . . . Max Security . | . . . . . . . . . . . . Sterilizations 1 | . . . 1 . . . . . . . . Squads Dispatched 26 | . 1 . 8 . . . 4 . 12 . 1 Investigation 5 | . . . 2 . . . . . 3 . . Extermination 3 | . . . . . . . . . 3 . . Reinforcement 9 | . 1 . 4 . . . 1 . 3 . . Assault 4 | . . . 2 . . . . . 1 . 1 Garrison 5 | . . . . . . . 3 . 2 . . Intercept . | . . . . . . . . . . . . Searches Triggered . | . . . . . . . . . . . . Construction Impeded 4 | . . . 1 . . . . . 3 . . Haulers Reinforced . | . . . . . . . . . . . . Active Scanning Responses . | . . . . . . . . . . . . Cargo Convoy Interrupts . | . . . . . . . . . . . . Stealth | -11 -10 -10 -9 -9 -9 -8 -8 -8 -7 -7 -7 --------- Run | Yrd Mat Min Mat Min Exi Min Mat Gar Fac Low Low Distress Signals 7 | . . . 6 . . . . 1 . . . Communications Jammed . | . . . . . . . . . . . . Distress Signals . | . . . . . . . . . . . . Times Spotted 232 | . 20 4 71 9 . 13 8 32 43 8 24 Peak Tracking Total 10 | . 3 2 6 3 . 7 4 6 6 3 10 Tactical Retreats 16 | . 1 . 6 . . 1 . 2 2 1 3 Traps | -11 -10 -10 -9 -9 -9 -8 -8 -8 -7 -7 -7 ------- Run | Yrd Mat Min Mat Min Exi Min Mat Gar Fac Low Low Traps Triggered 9 | . . . 3 . . . . 4 2 . . Indirectly . | . . . . . . . . . . . . Trap Hack Attempts . | . . . . . . . . . . . . Triggered . | . . . . . . . . . . . . Disarmed . | . . . . . . . . . . . . Reprogrammed . | . . . . . . . . . . . . Reused . | . . . . . . . . . . . . Traps Extracted . | . . . . . . . . . . . . Installed . | . . . . . . . . . . . . Triggered . | . . . . . . . . . . . . Machines | -11 -10 -10 -9 -9 -9 -8 -8 -8 -7 -7 -7 ---------- Run | Yrd Mat Min Mat Min Exi Min Mat Gar Fac Low Low Machines Disabled 25 | . 2 . 6 2 . 1 . 3 11 . . Max in Single Turn 5 | . 2 . 2 2 . 1 . 1 5 . . Garrison Access 1 | . . . . . . . . . 1 . . Machines Repaired . | . . . . . . . . . . . . Machines Dismantled . | . . . . . . . . . . . . Machines Sabotaged . | . . . . . . . . . . . . Overloaded Fab Kills . | . . . . . . . . . . . . Hacking | -11 -10 -10 -9 -9 -9 -8 -8 -8 -7 -7 -7 --------- Run | Yrd Mat Min Mat Min Exi Min Mat Gar Fac Low Low Machines Accessed 36 | . 9 2 12 . 2 . 5 . 6 . . Terminals 19 | . 6 1 8 . . . 3 . 1 . . Fabricators 2 | . . . . . . . . . 2 . . Repair Stations 4 | . 1 . 2 . . . 1 . . . . Recycling Units 5 | . 2 . 2 . . . . . 1 . . Scanalyzers . | . . . . . . . . . . . . Garrison Access 3 | . . . . . . . 1 . 2 . . Total Hacks 89 | . 27 4 31 . 2 . 12 . 13 . . Successful 31 | . 9 2 6 . 2 . 5 . 7 . . Failed 56 | . 17 2 25 . . . 6 . 6 . . Catastrophic 10 | . 1 . 7 . . . 1 . 1 . . Database Lockouts 2 | . 1 . . . . . 1 . . . . Manual 60 | . 18 3 23 . 1 . 9 . 6 . . Terminals 50 | . 18 3 18 . . . 8 . 3 . . Fabricators 3 | . . . . . . . . . 3 . . Repair Stations 9 | . 2 . 5 . . . 2 . . . . Recycling Units 18 | . 7 . 8 . . . . . 3 . . Scanalyzers . | . . . . . . . . . . . . Garrison Access 6 | . . . . . . . 2 . 4 . . Terminal Hacks 13 | . 5 2 2 . 2 . 1 . 1 . . Record 1 | . . . . . 1 . . . . . . Part Schematic 1 | . . 1 . . . . . . . . . Robot Analysis 6 | . 3 . 2 . . . 1 . . . . Prototype ID Bank 2 | . 2 . . . . . . . . . . Open Door 1 | . . 1 . . . . . . . . . Branch Access Points 1 | . . . . . . . . . 1 . . Derelict Proto ID Bank 1 | . . . . . 1 . . . . . . Fabricator Hacks 3 | . . . . . . . . . 3 . . Load Schematic 1 | . . . . . . . . . 1 . . Build 2 | . . . . . . . . . 2 . . Repair Station Hacks 6 | . 2 . 2 . . . 2 . . . . Scan Component 4 | . 1 . 2 . . . 1 . . . . Repair 2 | . 1 . . . . . 1 . . . . Recycling Unit Hacks . | . . . . . . . . . . . . Scanalyzer . | . . . . . . . . . . . . Garrison Access Hacks 2 | . . . . . . . 1 . 1 . . Unlock Access 1 | . . . . . . . 1 . . . . Seal Access 1 | . . . . . . . . . 1 . . Unauthorized Hacks 7 | . 2 . 2 . . . 1 . 2 . . Terminals 1 | . . . . . . . 1 . . . . Assimilate 1 | . . . . . . . 1 . . . . Fabricators . | . . . . . . . . . . . . Repair Stations . | . . . . . . . . . . . . Recycling Units 6 | . 2 . 2 . . . . . 2 . . Reject 2 | . 1 . . . . . . . 1 . . Mask 4 | . 1 . 2 . . . . . 1 . . Scanalyzers . | . . . . . . . . . . . . Garrison Access . | . . . . . . . . . . . . Data Cores Recovered . | . . . . . . . . . . . . Used . | . . . . . . . . . . . . Hacking Detections 25 | . 6 1 12 . . . 3 . 3 . . Full Trace Events 5 | . . . 2 . . . . . 3 . . Feedback Events . | . . . . . . . . . . . . Feedback Blocked . | . . . . . . . . . . . . Robot Schematics Acquired . | . . . . . . . . . . . . Robots Built . | . . . . . . . . . . . . Authchips . | . . . . . . . . . . . . Time . | . . . . . . . . . . . . Total Robot Build Rating . | . . . . . . . . . . . . Part Schematics Acquired 1 | . . 1 . . . . . . . . . Parts Built 1 | . . . . . . . . . 1 . . Authchips . | . . . . . . . . . . . . Time 109 | . . . . . . . . . 109 . . Total Part Build Rating 1 | . . . . . . . . . 1 . . Parts Repaired 2 | . 1 . . . . . 1 . . . . Time 58 | . 26 . . . . . 32 . . . . Parts Recycled . | . . . . . . . . . . . . Recycled Matter . | . . . . . . . . . . . . Retrieved Matter . | . . . . . . . . . . . . Retrieved Components . | . . . . . . . . . . . . Parts Scanalyzed . | . . . . . . . . . . . . Part Schematics Acquired . | . . . . . . . . . . . . Parts Damaged . | . . . . . . . . . . . . Bothacking | -11 -10 -10 -9 -9 -9 -8 -8 -8 -7 -7 -7 ------------ Run | Yrd Mat Min Mat Min Exi Min Mat Gar Fac Low Low Used RIF Installer . | . . . . . . . . . . . . Robots Hacked . | . . . . . . . . . . . . Non-combat . | . . . . . . . . . . . . Combat . | . . . . . . . . . . . . Robot Hacks Applied . | . . . . . . . . . . . . Relay Couplers Released 3 | . . . . . . . . 3 . . . Programmers 3 | . . . . . . . . 3 . . . Fabnet Peak Effective % . | . . . . . . . . . . . . Robots Rewired . | . . . . . . . . . . . . Allies Hacked . | . . . . . . . . . . . . Hacks Repelled . | . . . . . . . . . . . . Allies | -11 -10 -10 -9 -9 -9 -8 -8 -8 -7 -7 -7 -------- Run | Yrd Mat Min Mat Min Exi Min Mat Gar Fac Low Low Total Allies 3 | . . 3 . . . . . . . . . Largest Group 3 | . . 3 3 . . . . . . . . Highest-Rated Group 40 | . . 40 40 . . . . . . . . Highest-Rated Ally 16 | . . 16 16 . . . . . . . . Total Orders 1 | . . . . . . . . . . . 1 EXPLORE 1 | . . . . . . . . . . . 1 Ally Attacks 66 | . . . 66 . . . . . . . . Total Damage 610 | . . . 610 . . . . . . . . Kills 9 | . . . 9 . . . . . . . . Allies Corrupted . | . . . . . . . . . . . . Allies Melted . | . . . . . . . . . . . . Intel | -11 -10 -10 -9 -9 -9 -8 -8 -8 -7 -7 -7 ------- Run | Yrd Mat Min Mat Min Exi Min Mat Gar Fac Low Low Robot Analysis Total 6 | . 3 . 2 . . . 1 . . . . Derelict Logs Recovered 7 | . . 1 . 2 . . . . . 2 2 Drone Launches 2 | . . . . . . . . . . . 2 Drone Recoveries 2 | . . . . . . . . . . . 2 Exploration | -11 -10 -10 -9 -9 -9 -8 -8 -8 -7 -7 -7 ------------- Run | Yrd Mat Min Mat Min Exi Min Mat Gar Fac Low Low Turns Passed 20997 | 65 1576 1305 4890 1773 1427 1791 437 2612 2626 1516 979 Spaces Moved 9021 | 22 810 719 1779 620 590 696 183 1101 1046 942 513 Core 16 | . . . . . . . . . 16 . . Treads 5957 | 22 754 719 1779 620 590 696 183 594 . . . Legs 782 | . . . . . . . . 507 275 . . Wheels 2241 | . 56 . . . . . . . 730 942 513 Hover . | . . . . . . . . . . . . Flight 25 | . . . . . . . . . 25 . . Fastest Speed 95 | 160 95 160 160 240 240 240 160 160 110 135 120 Average Speed 194 | 160 156 160 221 240 240 240 161 202 179 153 137 Slowest Speed 1250 | 160 160 160 320 240 240 240 240 320 1250 160 160 Overloaded Moves . | . . . . . . . . . . . . Propulsion Burnouts . | . . . . . . . . . . . . Robots Hopped . | . . . . . . . . . . . . Cave-ins Triggered . | . . . . . . . . . . . . Exploration Rate (%) 70 | 4 97 95 96 99 77 102 15 78 18 97 68 Regions Visited 11 Branch Regions 6 Pre-discovered Areas 4 | . . . . . 1 . . . . 1 2 Known Exits Taken 3 | . . . . . . . 1 . 1 1 . Unknown Exits Taken 7 | 1 1 1 1 1 1 1 . . . . . Scrap Searched 9 | . . 1 . 1 . 1 . . . 4 2 Spaces Dug 2 | . . . . . . . . . 2 . . Terrain Destroyed 324 | . 11 . 92 46 . 68 . 42 65 . . Melee . | . . . . . . . . . . . . Projectile 17 | . . . 2 . . . . 8 7 . . AOE 307 | . 11 . 90 46 . 68 . 34 58 . . Terrain Rammed . | . . . . . . . . . . . . Walls Destroyed . | . . . . . . . . . . . . Machines Disabled . | . . . . . . . . . . . . Actions | -11 -10 -10 -9 -9 -9 -8 -8 -8 -7 -7 -7 --------- Run | Yrd Mat Min Mat Min Exi Min Mat Gar Fac Low Low Total 11509 | 36 1014 824 2443 895 602 772 291 1295 1621 985 731 Wait 1548 | . 110 69 381 253 . 46 74 42 381 12 180 Move 9008 | 21 809 718 1778 619 589 695 182 1098 1045 941 513 Hop . | . . . . . . . . . . . . Pick Up 88 | . 16 3 26 2 2 . 5 10 18 3 3 Fast Attach 47 | 1 2 . 6 . 3 . 3 9 18 3 2 Attach 46 | . 3 . 6 . 1 . 5 11 9 6 5 Detach 12 | . . . 2 1 . . . 2 4 1 2 Swap 96 | 2 6 4 41 5 2 3 1 14 13 3 2 Drop 103 | 4 4 4 45 6 5 1 2 10 19 3 . Fire 523 | 8 63 26 157 9 . 27 19 91 87 12 24 Melee 20 | . . . . . . . . . 20 . . Ram 1 | . . . . . . . . . 1 . . Kick 1 | . . . . . . . . . 1 . . Crush 2 | . 1 . 1 . . . . . . . . Escape Stasis 13 | . . . . . . . . 8 5 . . Rewire 1 | . . . . . . . . . . 1 . Trap . | . . . . . . . . . . . . Miscellaneous . | . . . . . . . . . . . . Route ------- -11/Scrapyard -10/Materials (discovered 4 exits: *Mat x3 / *Min) -10/Mines (discovered 2 exits: *Mat x2) -9/Materials (discovered 5 exits: *Mat x3 / [*Min x2]) -9/Mines (discovered 3 exits: *Mat x2 / *Exi) -9/Exiles -8/Mines (discovered 2 exits: *Mat x2) -8/Materials -8/Garrison (discovered 3 exits: *Fac x3) -7/Factory (discovered 5 exits: [*Fac] / Sto x2 / *Low x2) -7/Lower Caves -7/Lower Caves (discovered 1 exit: [*Fac]) History --------- Turn | Location | Event 6 | -11/Scrapyard | Discovered new exit (range 3) 66 | -11/Scrapyard | Entered Materials 310 | -10/Materials | Build established: Mutant 598 | -10/Materials | Discovered new exit (range 13) 828 | -10/Materials | Repaired Lgt. Treads 949 | -10/Materials | Discovered new exit (range 9) 1166 | -10/Materials | Build established: Scavenger-Mutant 1292 | -10/Materials | Discovered new exit (range 13) 1352 | -10/Materials | Central database locked down 1496 | -10/Materials | Discovered new exit (range 14) 1642 | -10/Materials | Entered Mines 1707 | -10/Mines | Core integrity fell below 50% 1746 | -10/Mines | Discovered new exit (range 16) 1859 | -10/Mines | Found the Drone Emporium 1876 | -10/Mines | Found Prototype Device 1876 | -10/Mines | Identified Thief Drone Bay 1960 | -10/Mines | Assisted by bots powering up and referring to "LRC-V3" 2032 | -10/Mines | Found a hidden stash of uninstalled traps 2810 | -10/Mines | Discovered new exit (range 15) 2947 | -10/Mines | Entered Materials 2947 | -9/Materials | Accompanied by 3 allies 2947 | -9/Materials | Evolved 2 slots: Utility x1, Weapon x1 3420 | -9/Materials | Build established: Tank 3551 | -9/Materials | Discovered new exit (range 8) 3668 | -9/Materials | Discovered new exit (range 14) 4408 | -9/Materials | Discovered new exit (range 12) 4804 | -9/Materials | Discovered new exit (range 4) 5709 | -9/Materials | Discovered new exit (range 16) 5897 | -9/Materials | Build established: Gunner 6147 | -9/Materials | First assault squad dispatched 6317 | -9/Materials | Build established: Scavenger-Tank 6988 | -9/Materials | Build established: Tank 7757 | -9/Materials | Sterilization system engaged 7757 | -9/Materials | Non-combat units ordered to evacuate 7837 | -9/Materials | Entered Mines 7972 | -9/Mines | Discovered new exit (range 7) 7981 | -9/Mines | Joined a pair of Derelicts in attacking an 0b10 outpost 8129 | -9/Mines | Assembled infested the area 8195 | -9/Mines | Core integrity fell below 50% 8470 | -9/Mines | Learned Materials garrison access intel 8820 | -9/Mines | Discovered new exit (range 9) 8949 | -9/Mines | Deemed a non-threat by the Exiles lab entrance 8951 | -9/Mines | Discovered new exit (range 5) 9273 | -9/Mines | Learned location of 1 exit from Lower Caves 9610 | -9/Mines | Entered Exiles 9646 | -9/Exiles | Discovered new exit (range 15) 9738 | -9/Exiles | Met 8R-AWN 9774 | -9/Exiles | Met EX-HEX 9824 | -9/Exiles | Build established: Mutant 9844 | -9/Exiles | Met EX-BIN 9877 | -9/Exiles | Aligned with FarCom system 9880 | -9/Exiles | Given EX-Vault access code 9937 | -9/Exiles | Opened EX-Vault 9955 | -9/Exiles | Found 0b10 Alert Chip 10006 | -9/Exiles | Warned to stay clear of 0b10 Research branches 10071 | -9/Exiles | Met EX-DEC 10083 | -9/Exiles | Learned location of Zion (-7) 10301 | -9/Exiles | Visited The Gauntlet 11037 | -9/Exiles | Left Exiles lab with 0b10 Alert Chip 11037 | -9/Exiles | Entered Mines 11304 | -8/Mines | Build established: Tank 11454 | -8/Mines | Discovered new exit (range 6) 12001 | -8/Mines | Discovered new exit (range 9) 12828 | -8/Mines | Entered Materials 12828 | -8/Materials | Evolved 2 slots: Propulsion x1, Utility x1 12829 | -8/Materials | Loaded intel: 1 garrison access location 13003 | -8/Materials | Repaired Rocket Launcher 13208 | -8/Materials | Identified exit to Garrison 13241 | -8/Materials | Central database locked down 13265 | -8/Materials | Entered Garrison 13289 | -8/Garrison | Triggered checkpoint 13535 | -8/Garrison | Triggered checkpoint 13576 | -8/Garrison | Triggered checkpoint 13629 | -8/Garrison | Destroyed 10 combat bots 13667 | -8/Garrison | Triggered checkpoint 13728 | -8/Garrison | Triggered checkpoint 13836 | -8/Garrison | Discovered new exit (range 9) 13865 | -8/Garrison | Triggered checkpoint 14159 | -8/Garrison | Triggered checkpoint 14251 | -8/Garrison | Triggered checkpoint 14368 | -8/Garrison | Discovered new exit (range 12) 14491 | -8/Garrison | Build established: Scavenger-Tank 14806 | -8/Garrison | Lost 6 parts (1p2n3w) 15114 | -8/Garrison | Attempted to access garrison exit controls, blocked by remote lockdown 15187 | -8/Garrison | Build established: Scavenger-Skirmisher 15229 | -8/Garrison | Spotted B-75 Beast 15314 | -8/Garrison | Destroyed B-75 Beast 15573 | -8/Garrison | Attempted to access garrison exit controls, blocked by remote lockdown 15860 | -8/Garrison | Discovered new exit (range 10) 15877 | -8/Garrison | Entered Factory 15877 | -7/Factory | Evolved 2 slots: Propulsion x1, Utility x1 15878 | -7/Factory | Identified exit to Storage 16026 | -7/Factory | Identified exit to Lower Caves 16426 | -7/Factory | Lost 3 parts (2n1w) 16644 | -7/Factory | Lost 7 parts (2p2n1u2w) 16820 | -7/Factory | Core integrity fell below 50% 16870 | -7/Factory | Lost 5 parts (1p2n1u1w) 17049 | -7/Factory | Discovered new exit (range 13) 17302 | -7/Factory | Build established: Mutant 17603 | -7/Factory | Build established: Tank 17798 | -7/Factory | Fabricated Huge Storage Unit? 18277 | -7/Factory | First assault squad dispatched 18332 | -7/Factory | Garrison activated, responded to threat 18440 | -7/Factory | Core integrity fell below 20% 18499 | -7/Factory | Lost 8 parts (1p2n2u3w) 18503 | -7/Factory | Entered Lower Caves 18504 | -7/Lower Caves | Identified exit to Lower Caves 18510 | -7/Lower Caves | Met a Warlord Commander 18511 | -7/Lower Caves | Learned location of Warlord (-5) 18512 | -7/Lower Caves | Warlord Commander delivered Encrypted Comm Array 18518 | -7/Lower Caves | Found Encrypted Comm Array 18800 | -7/Lower Caves | Encountered a Warlord checkpoint 18876 | -7/Lower Caves | Learned Factory garrison access intel 18892 | -7/Lower Caves | Learned Factory stockpile data 20019 | -7/Lower Caves | Entered another Lower Caves area 20032 | -7/Lower Caves | Discovered new exit (range 13) 20984 | -7/Lower Caves | Attracted the attention of an 0b10 outpost 20998 | -7/Lower Caves | Destroyed by S-27 Virus with Autogun Last Messages --------------- 20722_ Searching scrap... 20722_ Found Hvy. Mace. 20722_ Found 39 Matter. 20738_ System corrupted: Matter fused (-9). 20753_ Acquired derelict log, extracted data. World map confirmed: -7/Zion. 20766_ System corrupted: IFF burst signal emitted. 20908_ System corrupted: Component data lost. 20983_ Penetrated by Slug. 20984_ Y-64 Sentinel: "DETECTED UNIDENTIFIED DERELICT." 20984_ S-27 Virus springs to life. 20988_ Y-64 Sentinel: "REQUESTING BACKUP." 20989_ Mic. Nuclear Core destroyed. 20992_ Penetrated by Slug. 20992_ Slug penetrates Y-64 Sentinel. 20992_ B-48 Gladiator destroyed. 20995_ Hpw. Shotgun destroyed. 20995_ Penetrated by Slug. 20995_ Slug penetrates Y-64 Sentinel. 20997_ Hvy. Armor Plating destroyed. Map ----- +----------------------------------------------------+ | ???????????????????????????# ?????###?# #??## | | ????????????????????????????????????# #?## | | ????????????????????????????????????## #?# | | ?????????????????????????????????????### ### | | ???????????????????????????????????????## | | ????????????????????????????????????????## | | ?????????????????????????????????????????# | | ?????????????????????????????????????????# | | ????????????????????????????? ???????? ## | | ???????????????????????????## ?????? ##?? | | ??????????????????????????## ????? #??? | | ??????????????????????????# ????? ??? | | ??????????????????????????# #????? ??? | | ?????????????????????????## ##????# ## ??? | | ????????????????????????## ###???#??###?# | | ????????????????????????# ##?????????# | | ????????????????????????# ##????????# | | ????????????????????????# #????????# | | ????????????????????##### #????????? | | ???????????????????## #?????????? | | ???????????????????# #??###?????? | | ???????????????????# #??# ##????? | | ???????????????????# ??# ### ##???? | | ??????????????????## #??# #???? | | ??????????????????# ###sss #???? | | ??????????????????# g %Y@ #??? | | ???????????????# # ####### ##### #?? | | ????????????????? ?????# #?????????? | | ?????????????? ?????# ## #####?????? | | ??????????? ### ????# ##### ####??? | | ????????????## ???# ????# #???## ##?? | | ?????????????## ????# # ???# #????# #?? | | ??????????????# ?????# #"???# #?#### ######?? | | ??????????????#??????# ####??# ### ###??????? | | ?????????????????????# ?????? # #?######## | | ?????????????????????## ??????#### ### | | ??????????????????????? ?????##### | | ???????????????????????#????## | | ??????????????????????###??## # | | ???????????????????#### #### ## ## | | ???????????????????# ## #### ## | | ???????????????????# #??# ## | | ???????????????????## #??## ## | | ????????????????????# ##???## | | ????????????????????# #####?????## | | ????????????????##### ###??????????######### | | ???????????????## ##????????????????????# | | ?????????????### ###?????????????????????# | | ?????????????# ##??????????????????????# | | ?????????????# ### #???????????????????????### | +----------------------------------------------------+ Best States ------------- Heat Dissipation 61 Energy Generation 16 Energy Capacity 290 Matter Stores 500 Matter Capacity 500 Sight Range 16 Terrain Scan Range 16 Terrain Scan Density 110 ECM Strength 1 Armor Coverage 600 Evasion (%) 41 Recoil Reduction 6 Offensive Hacking 20 Defensive Hacking 10 Item Schematics ----------------- Huge Storage Unit | -10/Mines | Hacked Robot Schematics ------------------ None Fabricated ------------ Huge Storage Unit | x1 | -7/Factory Alien Tech Used ----------------- None Achievements -------------- None Challenges ------------ None Game ------ Seed SmallAccelerationPlatform Manual? 0 Play Time 01:33:49 Cumulative 92.8 hours Start 2024.09.16 @ 18:05:29 End 2024.09.16 @ 19:41:06 Sessions 1 Manual Loads 0 Difficulty Rogue Special Mode None Game No. 126 Rogue 126 Adventurer 0 Explorer 0 Win Type - Total 1 Types 1/0/0/0/0/0/0/0/0 Lore% 19 Gallery% 56 Achievement% 44 Wizard Run 0 Options --------- Layout 0 ASCII 0 Keyboard 0 Movement Mouse Keybinds 1 Fullscreen 1 Font 18/TerminusBold Map View 76x50 Zoom Use 0% Tactical HUD 1 Map Filters NONE Filters NONE Steam 1 RUN: cce4e735-c9b7-48d4-9202-467f8be7c5ad